bitfinex-derivatives/quotes_BTCF0:USTF0_20241210
["timestamp","ask_amount","ask_price","bid_price","bid_amount"]
[1733790209968,0.41865314,97517.0,97516.0,0.00320521]
[1733790210173,0.54442423,97517.0,97493.0,0.3608]
[1733790210377,0.42005,97517.0,97516.0,1.5]
[1733790210565,0.95601481,97517.0,97516.0,1.5]
[1733790210766,0.96655342,97517.0,97516.0,1.5]
[1733790211071,0.91530342,97517.0,97516.0,1.5]
[1733790211268,0.90930342,97517.0,97516.0,1.5]
[1733790211469,0.77345937,97517.0,97516.0,1.5]
[1733790212178,0.77945937,97517.0,97516.0,1.5]
[1733790212862,0.96359246,97517.0,97516.0,1.5]
[1733790213065,0.77945937,97517.0,97516.0,1.50320521]
[1733790213773,0.88305369,97517.0,97516.0,1.51561975]
[1733790214072,0.7296,97517.0,97516.0,1.51561975]
[1733790214272,0.7296,97517.0,97516.0,1.51562806]
[1733790215471,0.88305159,97517.0,97516.0,1.51562806]
[1733790216179,0.88305159,97517.0,97516.0,1.52075623]
[1733790216669,0.88305159,97517.0,97516.0,1.51562806]
[1733790216872,0.7296,97517.0,97516.0,1.52075623]
[1733790220682,0.7296,97517.0,97516.0,1.52075609]
[1733790220885,0.7276,97517.0,97516.0,1.52075609]
[1733790221379,0.7236,97517.0,97516.0,1.52075609]
[1733790223683,0.77345174,97517.0,97516.0,1.52075609]
[1733790223871,0.77345174,97517.0,97516.0,1.50320509]
[1733790224179,0.78401256,97517.0,97516.0,1.50320509]
[1733790224380,0.91000248,97517.0,97516.0,1.5]
[1733790224582,0.91000248,97517.0,97516.0,1.50320552]
[1733790224773,0.91000248,97517.0,97516.0,1.5]
[1733790225180,0.77345174,97517.0,97516.0,1.50320558]
[1733790225379,0.77345174,97517.0,97516.0,1.55446058]
[1733790225579,0.95773668,97517.0,97516.0,1.55446058]
[1733790225785,0.77345174,97517.0,97516.0,1.55446058]
[1733790226187,0.87715292,97517.0,97516.0,1.55958919]
[1733790226380,0.7236,97517.0,97516.0,1.57202229]
[1733790226687,0.3628,97517.0,97516.0,1.57843153]
[1733790228189,0.48562792,97517.0,97516.0,1.57843153]
[1733790229695,0.002,97517.0,97516.0,1.57843153]
[1733790229903,0.12282792,97518.0,97516.0,1.58641985]
[1733790230094,0.12282792,97518.0,97517.0,0.02716485]
[1733790230499,0.12282792,97518.0,97517.0,1.52716485]
[1733790230792,0.12280793,97518.0,97517.0,1.57841985]
[1733790230994,0.15355292,97526.0,97517.0,1.57841985]
[1733790231199,0.15355292,97526.0,97525.0,0.05125]
[1733790231400,0.15355292,97526.0,97525.0,0.07200469]
[1733790231789,0.15355292,97526.0,97525.0,1.55958321]
[1733790231990,0.04984643,97526.0,97525.0,1.55958321]
[1733790232202,0.18428494,97529.0,97528.0,0.051249]
[1733790232403,0.18428494,97529.0,97528.0,0.05445408]
[1733790232597,0.04984742,97529.0,97528.0,0.05445408]
[1733790233200,0.04984742,97529.0,97528.0,0.05445394]
[1733790233395,0.04984742,97531.0,97528.0,0.05445394]
[1733790233595,0.04984742,97531.0,97529.0,0.00320494]
[1733790233796,0.04984742,97531.0,97530.0,0.00320494]
[1733790235002,0.17651468,97531.0,97525.0,1.50056]
[1733790235204,0.17651468,97531.0,97525.0,1.5]
[1733790235205,0.3608,97526.0,97525.0,1.5]
[1733790235405,0.3608,97526.0,97525.0,1.50320516]
[1733790235406,0.53732611,97526.0,97525.0,1.50320516]
[1733790235709,0.41064742,97526.0,97525.0,1.50320524]
[1733790237005,0.41064742,97526.0,97525.0,1.5]
[1733790237006,0.59487202,97526.0,97525.0,1.5]
[1733790237308,0.59487202,97526.0,97525.0,1.5032052]
[1733790237506,0.41264742,97526.0,97525.0,1.5032052]
[1733790237706,0.60186748,97526.0,97525.0,1.5032052]
[1733790237914,0.41764742,97526.0,97525.0,1.5032052]
[1733790238299,0.41765224,97526.0,97525.0,1.5032052]
[1733790238610,0.41765224,97526.0,97525.0,1.50320522]
[1733790239296,0.41765224,97526.0,97525.0,1.5032052]
[1733790240204,0.41265224,97526.0,97525.0,1.5032052]
[1733790241405,0.41265224,97526.0,97525.0,1.5]
[1733790241603,0.41265224,97526.0,97525.0,1.50320501]
[1733790242702,0.41265224,97526.0,97525.0,1.50833293]
[1733790242911,0.41165224,97526.0,97525.0,1.50833293]
[1733790243299,0.41165224,97526.0,97525.0,1.50320501]
[1733790243500,0.41265224,97526.0,97525.0,1.50320501]
[1733790243809,0.41265224,97526.0,97525.0,1.50833285]
[1733790244115,0.40965224,97526.0,97525.0,1.50833285]
[1733790244415,0.41065224,97526.0,97525.0,1.50833285]
[1733790247919,0.41065224,97526.0,97525.0,1.50833274]
[1733790248113,0.53728788,97526.0,97525.0,1.5032049]
[1733790248417,0.53728788,97526.0,97525.0,1.5]
[1733790248605,0.84314272,97526.0,97525.0,1.5]
[1733790249208,1.02041906,97526.0,97525.0,1.5]
[1733790249818,0.77704209,97526.0,97525.0,1.5]
[1733790250223,1.32284279,97526.0,97525.0,1.5]
[1733790250429,0.051256,97516.0,97505.0,0.051261]
[1733790250724,0.54511278,97506.0,97497.0,0.06202756]
[1733790250905,0.54511278,97506.0,97497.0,0.051265]
[1733790250906,0.3608,97498.0,97497.0,0.051265]
[1733790251105,0.3608,97498.0,97497.0,0.07841331]
[1733790251313,0.3608,97498.0,97497.0,1.57841331]
[1733790251515,0.3608,97498.0,97497.0,1.57841333]
[1733790251714,0.3608,97498.0,97497.0,1.57200273]
[1733790252307,0.51435717,97507.0,97506.0,0.05126]
[1733790252507,0.3608,97507.0,97506.0,0.07199773]
[1733790252922,0.3608,97507.0,97506.0,1.55959375]
[1733790253311,0.3608,97507.0,97506.0,1.57200802]
[1733790253711,0.3608,97507.0,97506.0,1.5720086]
[1733790254412,0.3608,97507.0,97506.0,1.56867485]
[1733790254614,0.3608,97507.0,97506.0,1.57700847]
[1733790255324,0.3608,97507.0,97506.0,1.58641892]
[1733790255620,0.15355717,97514.0,97506.0,1.53515892]
[1733790255819,0.12281577,97511.0,97507.0,0.28715892]
[1733790256117,0.12281577,97513.0,97511.0,0.051258]
[1733790256319,0.12281577,97515.0,97514.0,0.051256]
[1733790256915,0.12280805,97515.0,97514.0,1.5]
[1733790257112,0.12280805,97520.0,97516.0,0.051255]
[1733790257314,0.12280805,97520.0,97519.0,0.3608]
[1733790257515,0.12280805,97522.0,97520.0,0.051253]
[1733790257910,0.12280805,97522.0,97521.0,1.52395342]
[1733790258318,0.12280805,97523.0,97522.0,0.051252]
[1733790258520,0.09208029,97524.0,97522.0,0.21149409]
[1733790258726,0.09208029,97526.0,97525.0,0.05125]
[1733790259022,0.08808903,97527.0,97525.0,1.57841277]
[1733790259223,0.12277372,97533.0,97531.0,0.051247]
[1733790259422,0.12277372,97534.0,97532.0,0.65666277]
[1733790259723,0.12277372,97534.0,97533.0,0.07840877]
[1733790259925,0.12277372,97535.0,97533.0,0.07840877]
[1733790260110,0.12277372,97535.0,97534.0,0.01474152]
[1733790260311,0.0001214,97538.0,97537.0,0.051244]
[1733790260616,0.0001214,97538.0,97537.0,0.07840677]
[1733790260816,0.0001214,97538.0,97537.0,0.07199747]
[1733790261428,0.122791,97538.0,97537.0,0.0784056]
[1733790261612,0.0001214,97538.0,97537.0,0.0784056]
[1733790262022,0.0001214,97538.0,97537.0,0.02075347]
[1733790262211,0.15367857,97538.0,97537.0,0.00320467]
[1733790262414,0.0499638,97538.0,97537.0,0.00320467]
[1733790262615,0.1012078,97538.0,97522.0,8.637e-05]
[1733790262817,0.1012078,97538.0,97522.0,1.50008637]
[1733790262818,0.3608,97523.0,97522.0,1.50008637]
[1733790263022,0.3608,97523.0,97522.0,1.50329142]
[1733790264216,0.3608,97523.0,97522.0,1.50529142]
[1733790264617,0.3608,97523.0,97522.0,1.50208637]
[1733790264823,0.48347526,97523.0,97522.0,1.50408637]
[1733790265231,0.3608,97523.0,97522.0,1.50408637]
[1733790266230,0.3628,97523.0,97522.0,1.50208637]
[1733790266531,0.51713672,97523.0,97522.0,1.50008637]
[1733790266728,0.41164757,97523.0,97522.0,1.50008637]
[1733790266927,0.41364757,97523.0,97522.0,1.50008637]
[1733790267228,0.41364757,97523.0,97522.0,1.50329158]
[1733790267731,0.41364757,97523.0,97522.0,1.55454358]
[1733790268731,0.3638,97523.0,97522.0,1.55454358]
[1733790268930,0.3608,97523.0,97522.0,1.55454358]
[1733790269231,0.3648,97523.0,97522.0,1.55454358]
[1733790269621,0.3658,97523.0,97522.0,1.55454358]
[1733790269926,0.3658,97523.0,97522.0,1.57212231]
[1733790270120,0.002,97523.0,97522.0,1.93933172]
[1733790270428,0.005,97523.0,97522.0,1.93933172]
[1733790270835,0.005,97523.0,97522.0,2.03033172]
[1733790270836,0.002,97523.0,97522.0,2.03033172]
[1733790271128,0.003,97523.0,97522.0,2.03033172]
[1733790271326,0.003,97523.0,97522.0,2.00313837]
[1733790271528,0.003,97523.0,97522.0,2.0303191]
[1733790271721,0.002,97523.0,97522.0,2.0313191]
[1733790272121,0.002,97523.0,97522.0,2.12425139]
[1733790272327,0.12267071,97528.0,97522.0,1.93391074]
[1733790272531,0.12267071,97526.0,97523.0,0.02077237]
[1733790272830,0.12267071,97525.0,97524.0,0.02077237]
[1733790273028,0.0847,97527.0,97524.0,0.02077345]
[1733790273234,0.0847,97527.0,97525.0,0.01564568]
[1733790273527,0.0847,97527.0,97526.0,0.00320418]
[1733790273727,0.0847,97527.0,97526.0,0.01565101]
[1733790273934,0.0847,97527.0,97526.0,0.00320418]
[1733790275736,0.0867,97527.0,97526.0,0.00320418]
[1733790276437,0.002,97527.0,97526.0,0.02077376]
[1733790276738,0.002,97527.0,97526.0,0.02718266]
[1733790276928,0.002,97527.0,97526.0,0.20408266]
[1733790277128,0.002,97527.0,97526.0,1.70408266]
[1733790277727,0.002,97527.0,97526.0,1.70202088]
[1733790277927,0.002,97527.0,97526.0,1.71445635]
[1733790278323,0.0001214,97538.0,97537.0,0.051244]
[1733790278525,0.0001214,97538.0,97537.0,0.07201131]
[1733790279134,0.0001214,97538.0,97537.0,1.57201131]
[1733790279332,0.0041214,97538.0,97537.0,1.57201131]
[1733790280328,0.0061214,97538.0,97537.0,1.57201131]
[1733790281135,0.0061214,97538.0,97537.0,1.57200462]
[1733790281829,0.0001214,97538.0,97537.0,1.57500462]
[1733790282026,0.0001214,97538.0,97537.0,1.57700462]
[1733790282426,0.0001214,97538.0,97537.0,1.75893531]
[1733790282637,0.0001214,97538.0,97537.0,1.5814128]
[1733790283234,0.0001214,97538.0,97537.0,1.76534117]
[1733790283437,0.0001214,97538.0,97537.0,1.76434117]
[1733790284137,0.0001214,97538.0,97537.0,1.5804128]
[1733790286829,0.0001214,97538.0,97537.0,1.59119307]
[1733790287530,0.0001214,97538.0,97537.0,1.57876332]
[1733790287731,0.0001214,97538.0,97537.0,1.59120264]
[1733790290340,0.0001214,97538.0,97537.0,1.98670264]
[1733790292249,0.0001214,97538.0,97537.0,1.95952427]
[1733790292946,0.0001214,97538.0,97537.0,1.56402427]
[1733790293145,0.0001214,97538.0,97537.0,1.59120216]
[1733790293348,0.0001214,97538.0,97537.0,1.58159025]
[1733790293537,0.0001214,97538.0,97537.0,1.5764639]
[1733790293945,0.0001214,97538.0,97537.0,1.59723683]
[1733790294340,0.0001214,97538.0,97537.0,1.56402427]
[1733790295246,0.0001214,97538.0,97537.0,1.57876273]
[1733790296039,0.0001214,97538.0,97537.0,1.59350119]
[1733790296248,0.0001214,97538.0,97537.0,1.58388915]
[1733790296444,0.0001214,97538.0,97537.0,1.57876273]
[1733790297138,0.0001214,97538.0,97537.0,1.60595128]
[1733790298647,0.0001214,97538.0,97537.0,1.60596113]
[1733790299745,0.0001214,97538.0,97537.0,1.59122267]
[1733790299941,0.0001214,97538.0,97537.0,1.60596104]
[1733790300541,0.0001214,97538.0,97537.0,1.7899488]
[1733790300746,0.0001214,97538.0,97537.0,1.60596104]
[1733790302242,0.0001214,97538.0,97537.0,1.60596081]
[1733790302543,0.0001214,97538.0,97537.0,1.6008345]
[1733790302741,0.0001214,97538.0,97537.0,1.60596081]
[1733790303237,0.0001214,97538.0,97537.0,1.78994079]
[1733790303437,0.0001214,97538.0,97537.0,1.60596081]
[1733790304145,0.0001214,97538.0,97537.0,1.57876273]
[1733790304343,0.0001214,97538.0,97537.0,1.60596469]
[1733790304543,0.0001214,97538.0,97537.0,1.59122623]
[1733790305254,0.0001214,97538.0,97537.0,1.59195167]
[1733790305448,0.0001214,97538.0,97537.0,1.59122623]
[1733790306140,0.0001214,97538.0,97537.0,1.59122612]
[1733790307153,0.0001214,97538.0,97537.0,1.59622612]
[1733790307349,0.0001214,97538.0,97537.0,1.56902427]
[1733790307753,0.0001214,97538.0,97537.0,1.56402427]
[1733790308244,0.0001214,97538.0,97537.0,1.57363598]
[1733790308552,0.0001214,97538.0,97537.0,1.59125285]
[1733790309753,0.12290795,97541.0,97537.0,1.5450088]
[1733790309953,0.12290795,97541.0,97540.0,0.29708489]
[1733790310450,0.12290795,97541.0,97540.0,1.551243]
[1733790310652,0.3608,97553.0,97540.0,1.5]
[1733790310850,0.3608,97553.0,97549.0,0.051238]
[1733790311448,0.3608,97553.0,97540.0,1.60106851]
[1733790311643,0.10106851,97550.0,97540.0,1.5]
[1733790311847,0.3608,97543.0,97540.0,1.5]
[1733790312047,0.0918,97542.0,97540.0,1.5]
[1733790312446,0.0918,97542.0,97540.0,1.501]
[1733790312951,0.0918,97542.0,97540.0,1.552243]
[1733790313348,0.0918,97542.0,97540.0,1.553243]
[1733790314070,0.04983498,97541.0,97540.0,1.553243]
[1733790315454,0.04983498,97541.0,97540.0,1.552243]
[1733790315654,0.04983498,97541.0,97540.0,1.553243]
[1733790316446,0.0918,97542.0,97540.0,1.553243]
[1733790316650,0.0918,97542.0,97540.0,0.053243]
[1733790317151,0.0918,97542.0,97541.0,1.5]
[1733790317351,0.14163701,97542.0,97541.0,1.5]
[1733790318051,0.14163701,97542.0,97541.0,1.8608]
[1733790318250,0.15363245,97543.0,97541.0,1.8608]
[1733790318455,0.15363245,97544.0,97542.0,0.18435962]
[1733790318647,0.15363245,97544.0,97541.0,1.5]
[1733790318648,0.18438505,97544.0,97541.0,1.50056]
[1733790318854,0.3608,97542.0,97540.0,0.002]
[1733790319057,0.3608,97542.0,97517.0,0.30730842]
[1733790319058,0.04983627,97541.0,97529.0,0.18435962]
[1733790319354,0.3608,97530.0,97526.0,0.18435962]
[1733790319558,0.09,97529.0,97527.0,0.18435962]
[1733790319857,0.09,97529.0,97528.0,1.68435962]
[1733790320056,0.09,97529.0,97528.0,1.5]
[1733790320555,0.09,97529.0,97528.0,1.551249]
[1733790320858,0.09,97529.0,97528.0,1.912049]
[1733790321156,0.0933,97544.0,97528.0,1.912049]
[1733790321157,0.15364586,97534.0,97532.0,0.051247]
[1733790321456,0.54517504,97542.0,97528.0,1.8608]
[1733790321457,0.15364586,97535.0,97534.0,0.051246]
[1733790321650,0.3608,97542.0,97537.0,0.051244]
[1733790322052,0.3608,97542.0,97530.0,0.10106851]
[1733790322253,0.3608,97542.0,97541.0,1.551242]
[1733790322451,0.41063943,97542.0,97541.0,1.551242]
[1733790323046,0.04983943,97542.0,97541.0,1.551242]
[1733790323254,0.1535135,97542.0,97541.0,1.551242]
[1733790323450,0.2445135,97543.0,97541.0,1.551242]
[1733790324453,0.001,97542.0,97541.0,1.551242]
[1733790324958,0.2445135,97543.0,97541.0,1.551242]
[1733790325259,0.2455135,97543.0,97541.0,1.551242]
[1733790325460,0.1535135,97542.0,97541.0,1.551242]
[1733790325760,0.1535135,97542.0,97541.0,1.56151061]
[1733790325761,0.001,97542.0,97541.0,1.56151061]
[1733790326064,0.0498362,97542.0,97541.0,1.51026861]
[1733790326654,0.092,97543.0,97541.0,1.51026861]
[1733790326856,0.092,97543.0,97541.0,1.56151061]
[1733790327556,0.15351887,97542.0,97541.0,1.56151061]
[1733790328354,0.15451887,97542.0,97541.0,1.56151061]
[1733790329959,0.001,97542.0,97541.0,1.56151061]
[1733790330651,0.15452457,97542.0,97541.0,1.56151061]
[1733790330857,0.001,97542.0,97541.0,1.56151061]
[1733790331259,0.001,97542.0,97541.0,1.51026861]
[1733790331458,0.15452457,97542.0,97541.0,1.51026861]
[1733790331959,0.001,97542.0,97541.0,1.51026861]
[1733790332163,0.15452457,97542.0,97541.0,1.51026861]
[1733790332562,0.001,97542.0,97541.0,1.51026861]
[1733790332953,0.15452457,97542.0,97541.0,1.56151061]
[1733790334258,0.001,97542.0,97541.0,1.56151061]
[1733790334965,0.05083643,97542.0,97541.0,1.56151061]
[1733790335467,0.15457337,97542.0,97541.0,1.56151061]
[1733790335763,0.0508366,97542.0,97541.0,1.56151061]
[1733790336462,0.001,97542.0,97541.0,1.56151061]
[1733790336667,0.0508357,97542.0,97541.0,1.56151061]
[1733790337865,0.001,97542.0,97541.0,1.56151061]
[1733790338073,0.15359397,97549.0,97546.0,0.051239]
[1733790338262,0.0909,97558.0,97552.0,0.051236]
[1733790338569,0.04982995,97557.0,97552.0,0.051236]
[1733790338861,0.04982995,97557.0,97546.0,0.18429205]
[1733790338862,0.412034,97557.0,97556.0,1.5]
[1733790339062,0.68342818,97557.0,97535.0,0.18429205]
[1733790339263,0.51437022,97536.0,97533.0,0.3955]
[1733790339463,0.14374121,97535.0,97533.0,0.4060852]
[1733790339671,0.04984121,97534.0,97533.0,0.4060852]
[1733790339861,0.15359537,97534.0,97533.0,0.4060852]
[1733790340059,0.24749802,97535.0,97534.0,0.051246]
[1733790340258,0.3608,97539.0,97534.0,0.051246]
[1733790340259,0.15359802,97536.0,97534.0,0.051246]
[1733790340656,0.15359802,97536.0,97535.0,1.5]
[1733790341766,0.15361545,97537.0,97535.0,1.5]
[1733790342068,0.15361545,97536.0,97535.0,1.551245]
[1733790342267,0.15361545,97537.0,97535.0,1.553245]
[1733790342473,0.15361545,97537.0,97536.0,0.051245]
[1733790343067,0.15361545,97538.0,97536.0,0.051245]
[1733790343263,0.18428426,97543.0,97537.0,1.5]
[1733790343567,0.04983732,97542.0,97537.0,1.5]
[1733790343773,0.54568427,97544.0,97540.0,0.051243]
[1733790343774,0.04983732,97541.0,97540.0,0.051243]
[1733790343976,0.04983732,97542.0,97540.0,0.051243]
[1733790344277,0.04983732,97541.0,97540.0,0.051243]
[1733790344465,0.04983732,97543.0,97540.0,0.051243]
[1733790344666,0.23412158,97543.0,97540.0,0.051243]
[1733790344867,0.23412158,97543.0,97542.0,1.5]
[1733790345272,0.04983732,97543.0,97542.0,1.5]
[1733790347174,0.36136001,97544.0,97542.0,1.5]
[1733790347373,0.001,97543.0,97542.0,1.5]
[1733790348077,0.05083704,97543.0,97542.0,1.5]
[1733790348274,0.04983704,97543.0,97542.0,1.5]
[1733790348479,0.001,97544.0,97542.0,1.551242]
[1733790348872,0.3608,97553.0,97542.0,1.551242]
[1733790348873,0.15460987,97543.0,97542.0,1.551242]
[1733790349174,0.05083468,97543.0,97542.0,1.551242]
[1733790349482,0.001,97543.0,97542.0,1.73558175]
[1733790349879,0.001,97543.0,97542.0,1.551242]
[1733790350266,0.001,97543.0,97542.0,1.55288968]
[1733790350687,0.15462034,97543.0,97542.0,1.55288968]
[1733790351475,0.15464699,97543.0,97542.0,1.55288968]
[1733790351675,0.0508347,97543.0,97542.0,1.50164768]
[1733790352381,0.001,97543.0,97542.0,1.50164768]
[1733790353079,0.3618,97543.0,97542.0,1.50164768]
[1733790353380,0.41163792,97543.0,97542.0,1.50164768]
[1733790355776,0.05083792,97543.0,97542.0,1.50164768]
[1733790356783,0.001,97543.0,97542.0,1.50164768]
[1733790356977,0.17957732,97543.0,97542.0,1.50164768]
[1733790357383,0.001,97543.0,97542.0,1.50164768]
[1733790358079,0.05083856,97543.0,97542.0,1.50164768]
[1733790359983,0.001,97543.0,97542.0,1.50164768]
[1733790360375,0.05083817,97543.0,97542.0,1.50164768]
[1733790360777,0.23521397,97543.0,97542.0,1.50164768]
[1733790361086,0.05083817,97543.0,97542.0,1.50164768]
[1733790361680,0.001,97543.0,97542.0,1.50164768]
[1733790362483,0.05083817,97543.0,97542.0,1.50164768]
[1733790363380,0.54042013,97543.0,97542.0,1.50164768]
[1733790363582,0.4513,97543.0,97542.0,1.50164768]
[1733790363787,0.051248,97531.0,97502.0,0.3608]
[1733790363988,0.412052,97523.0,97502.0,0.3608]
[1733790364183,0.3608,97523.0,97522.0,1.50008637]
[1733790364585,0.41065643,97523.0,97522.0,1.50008637]
[1733790364784,0.53886065,97523.0,97522.0,1.50008637]
[1733790364984,0.41065643,97523.0,97522.0,1.51208637]
[1733790365592,0.41065643,97523.0,97522.0,1.50908637]
[1733790365593,0.59478784,97523.0,97522.0,1.50908637]
[1733790365792,0.41065643,97523.0,97522.0,1.50908637]
[1733790366288,0.59478784,97523.0,97522.0,1.50908637]
[1733790366487,0.41065643,97523.0,97522.0,1.50908637]
[1733790366693,0.41065643,97523.0,97522.0,1.50508637]
[1733790366988,0.41065643,97523.0,97522.0,1.51836531]
[1733790367891,0.41065643,97523.0,97522.0,1.50808637]
[1733790368894,0.3608,97523.0,97522.0,1.50808637]
[1733790369690,0.59463504,97523.0,97522.0,1.50808637]
[1733790370088,0.41065625,97523.0,97522.0,1.50808637]
[1733790370598,0.50075625,97523.0,97522.0,1.55933837]
[1733790370794,0.4509,97523.0,97522.0,1.55933837]
[1733790371895,0.3608,97523.0,97522.0,1.55933837]
[1733790372795,0.49854984,97523.0,97522.0,1.50808637]
[1733790372989,0.49854984,97523.0,97522.0,1.52282988]
[1733790373992,0.49854984,97523.0,97522.0,1.50808637]
[1733790374400,0.49854984,97523.0,97522.0,1.51129148]
[1733790374602,0.49854984,97523.0,97522.0,1.51641966]
[1733790375298,0.49854984,97523.0,97522.0,1.50808637]
[1733790376099,0.49854984,97523.0,97522.0,1.51129158]
[1733790376396,0.49854984,97523.0,97522.0,1.51641993]
[1733790377199,0.49854984,97523.0,97522.0,1.52283007]
[1733790377701,0.49854984,97523.0,97522.0,1.57408207]
[1733790378100,0.49854984,97523.0,97522.0,1.58654365]
[1733790378898,0.13774984,97523.0,97522.0,1.58654543]
[1733790379099,0.13774984,97523.0,97522.0,1.58974968]
[1733790379295,0.3608,97540.0,97522.0,1.53849768]
[1733790379501,0.3608,97540.0,97530.0,0.10096476]
[1733790379802,0.12253702,97535.0,97531.0,0.02720649]
[1733790380009,0.12253702,97535.0,97532.0,0.02720649]
[1733790380198,0.12253702,97535.0,97533.0,0.051246]
[1733790380503,0.12253702,97536.0,97533.0,0.0865]
[1733790380706,0.12253702,97537.0,97535.0,0.051245]
[1733790380896,0.12253702,97538.0,97535.0,0.051245]
[1733790381105,0.12253702,97538.0,97536.0,0.02717878]
[1733790381296,0.12253702,97538.0,97537.0,0.02076991]
[1733790381802,0.3608,97540.0,97537.0,0.02076991]
[1733790381803,0.12253702,97539.0,97537.0,0.02076991]
[1733790382100,0.12253702,97539.0,97538.0,1.52076991]
[1733790382299,0.3608,97540.0,97538.0,1.52076991]
[1733790382603,0.3608,97540.0,97539.0,0.02076234]
[1733790385104,0.12258898,97543.0,97539.0,0.07841394]
[1733790385402,0.12258898,97544.0,97539.0,0.051243]
[1733790385611,0.12258898,97543.0,97539.0,0.051243]
[1733790386004,0.12258898,97544.0,97539.0,0.051243]
[1733790386193,0.51449129,97549.0,97538.0,1.50056]
[1733790386194,0.12258898,97543.0,97542.0,0.051242]
[1733790386503,0.12257983,97546.0,97542.0,0.0124382]
[1733790386806,0.12257983,97546.0,97542.0,0.0051265]
[1733790387105,0.12257983,97547.0,97543.0,0.16711604]
[1733790387305,0.12257983,97548.0,97544.0,0.02076699]
[1733790387600,0.12257983,97548.0,97547.0,1.5]
[1733790387805,0.12254147,97548.0,97547.0,1.52076699]
[1733790389194,0.09188987,97548.0,97547.0,1.53134666]
[1733790389400,0.09188987,97554.0,97552.0,0.051236]
[1733790389605,0.09188346,97557.0,97555.0,0.051235]
[1733790389802,0.09188346,97557.0,97556.0,0.02076699]
[1733790390206,0.45268346,97557.0,97556.0,0.02076699]
[1733790390505,0.3608,97557.0,97556.0,1.50833052]
[1733790390698,0.3638,97557.0,97556.0,1.50320402]
[1733790390893,0.48625938,97557.0,97556.0,1.50320402]
[1733790391099,0.3638,97557.0,97556.0,1.50320402]
[1733790391505,0.49224597,97557.0,97556.0,1.50420402]
[1733790392306,0.3698,97557.0,97556.0,1.50420402]
[1733790392704,0.38047162,97557.0,97556.0,1.50420402]
[1733790393009,0.38047162,97557.0,97556.0,1.501]
[1733790394500,0.5336429,97557.0,97556.0,1.501]
[1733790394700,0.43030732,97557.0,97556.0,1.501]
[1733790397305,0.43030732,97557.0,97556.0,0.001]
[1733790397306,0.73030732,97557.0,97556.0,0.001]
[1733790397508,0.8582853,97557.0,97523.0,0.34452]
[1733790397703,0.3608,97530.0,97529.0,0.051248]
[1733790397901,0.4526826,97530.0,97529.0,0.07198786]
[1733790398202,0.3608,97530.0,97529.0,1.57198786]
[1733790398913,0.09189761,97530.0,97529.0,1.57198786]
[1733790399208,0.3608,97536.0,97531.0,0.051247]
[1733790399510,0.12253336,97533.0,97532.0,0.02074401]
[1733790399704,0.051246,97533.0,97532.0,0.00320444]
[1733790400005,0.10109117,97533.0,97532.0,0.00320444]
[1733790400205,0.051248,97531.0,97529.0,1.50356]
[1733790400400,0.04984517,97530.0,97529.0,1.503]
[1733790400598,0.0853,97530.0,97529.0,1.5]
[1733790400906,0.13514517,97530.0,97529.0,1.5]
[1733790401696,0.14314517,97530.0,97529.0,1.552248]
[1733790401900,0.14314517,97530.0,97529.0,1.55545303]
[1733790402203,0.0973,97530.0,97529.0,1.50420503]
[1733790402406,0.14714734,97530.0,97529.0,1.50420503]
[1733790402603,0.14714734,97530.0,97529.0,1.501]
[1733790403199,0.3310143,97530.0,97529.0,1.501]
[1733790403511,0.14714734,97530.0,97529.0,1.501]
[1733790403702,0.13514734,97530.0,97529.0,1.5]
[1733790404010,0.14714734,97530.0,97529.0,1.501]
[1733790404402,0.27593081,97530.0,97529.0,1.501]
[1733790405198,0.27193081,97530.0,97529.0,1.501]
[1733790405399,0.14714734,97530.0,97529.0,1.501]
[1733790406003,0.05384734,97530.0,97529.0,1.5]
[1733790406213,0.08456037,97544.0,97529.0,1.82174744]
[1733790406408,0.00012537,97560.0,97529.0,1.82174744]
[1733790406409,0.10096476,97570.0,97568.0,0.051228]
[1733790406708,0.22500961,97574.0,97568.0,0.412028]
[1733790406709,0.01060312,97574.0,97568.0,0.412028]
[1733790407007,0.3608,97575.0,97573.0,1.5]
[1733790407400,9.289e-05,97574.0,97573.0,1.5]
[1733790408012,0.00809289,97574.0,97573.0,1.5]
[1733790408706,0.03468676,97574.0,97573.0,1.5]
[1733790409609,0.03468676,97574.0,97573.0,1.501]
[1733790409610,0.02768676,97574.0,97573.0,1.501]
[1733790409799,0.02168676,97574.0,97573.0,1.501]
[1733790410003,0.02768676,97574.0,97573.0,1.502]
[1733790412212,0.00709289,97574.0,97573.0,1.502]
[1733790423216,0.051229,97566.0,97555.0,0.051234]
[1733790423421,0.05123,97565.0,97556.0,0.412034]
[1733790423618,0.05123,97565.0,97559.0,0.051232]
[1733790424017,0.10096476,97566.0,97557.0,1.50076]
[1733790424317,0.10096476,97566.0,97557.0,1.5]
[1733790424516,0.10096476,97566.0,97563.0,0.05123]
[1733790424822,0.00709289,97574.0,97563.0,0.05123]
[1733790424823,0.051227,97570.0,97563.0,0.05123]
[1733790425024,0.003,97566.0,97557.0,1.50072]
[1733790425317,0.003,97566.0,97544.0,0.3608]
[1733790425318,0.051238,97549.0,97544.0,0.3608]
[1733790425518,0.051239,97547.0,97544.0,0.3608]
[1733790425918,0.051239,97547.0,97538.0,0.051244]
[1733790426114,0.051239,97547.0,97540.0,0.051243]
[1733790426320,0.10096476,97554.0,97542.0,0.051241]
[1733790426516,0.10096476,97554.0,97534.0,0.3608]
[1733790426517,0.01047965,97562.0,97560.0,0.051232]
[1733790426720,0.002,97565.0,97560.0,0.051232]
[1733790427118,0.002,97565.0,97561.0,1.5]
[1733790427312,0.051228,97569.0,97561.0,1.5]
[1733790427522,0.06169512,97569.0,97561.0,1.5]
[1733790427726,0.051231,97562.0,97561.0,1.5]
[1733790428616,0.134031,97562.0,97561.0,1.5]
[1733790429018,0.139031,97562.0,97561.0,1.5]
[1733790429731,0.139031,97562.0,97560.0,0.001]
[1733790430025,0.139031,97562.0,97526.0,0.3608]
[1733790430026,0.088,97561.0,97544.0,0.05124]
[1733790430231,0.088,97561.0,97552.0,1.5]
[1733790430232,0.051233,97558.0,97552.0,1.5]
[1733790431216,0.051234,97556.0,97552.0,1.5]
[1733790431935,0.051235,97554.0,97552.0,1.5]
[1733790433725,0.053235,97554.0,97552.0,1.5]
[1733790434432,0.18354956,97553.0,97552.0,1.5]
[1733790434727,0.056235,97554.0,97552.0,1.5]